[Event "1000GM Summer-II Dual Schev-A 2024"]
[Site "San Jose"]
[Date "2024.07.03"]
[Round "2.4"]
[White "Fierro Baquero, Martha L."]
[Black "Rajaram, Rohan"]
[Result "1/2-1/2"]
[ECO "A09"]
[WhiteElo "2273"]
[BlackElo "2062"]
[Annotator "TA"]
[PlyCount "156"]
[EventDate "2024.06.29"]
[EventType "schev"]
[EventCountry "USA"]
[SourceTitle "playchess.com"]
[Source "ChessBase"]
[SourceQuality "1"]
[TimeControl "5400+30"]

{[%evp 63,156,289,287,300,300,283,265,254,272,272,272,162,166,161,182,154,222,191,235,229,515,247,325,326,333,333,325,307,266,0,262,159,158,50,139,68,145,157,157,154,260,244,230,0,277,254,529,448,741,770,659,727,742,721,500,1051,942,943,1020,0,239,0,1145,970,1220,1150,1224,1022,2274,1955,4013,2933,3819,3927,2314,1810,1806,1256,29954,4699,29971,29954,4371,151,151,0,0,0,0,0,0,0,0,0,323]} 1. Nf3 {[%emt 0:04:35]} d5 {[%emt 0:00:35]} 2. g3 {[%emt 0:00:11]} g6 {[%emt 0:00:05]} 3. Bg2 {[%emt 0:00:04]} Bg7 {[%emt 0:00:05]} 4. O-O {[%emt 0:00:08]} e5 {[%emt 0:00:03]} 5. c4 {[%emt 0:00:24]} dxc4 {[%emt 0:02:16]} 6. Qa4+ {[%emt 0:00:45]} c6 {[%emt 0:01:41]} 7. Qxc4 {[%emt 0:00:02]} Ne7 {[%emt 0:00:12] A09: Réti Opening: 1 Nf3 d5 2 c4.} 8. d3 {[%emt 0:01:19]} O-O {[%emt 0:00:20]} 9. Nc3 {[%emt 0:01:06] is the legacy move (9.Nbd2).} Nd7 {[%emt 0:03:55]} 10. Bd2 {[%emt 0:04:23]} Nb6 {[%emt 0:08:23]} 11. Qh4 $146 {[%emt 0:12:45]} ({Predecessor:} 11. Qc5 Nd7 12. Qa3 Nf5 13. Rac1 Nb6 14. e4 Nd4 15. Nxd4 Qxd4 16. Be3 Qd8 17. Rfd1 {½-½ Berkovich,M (2336)-Nordstrom,F (2050) Wch Seniors 65 29th 2019 (8)}) 11... f6 {[%emt 0:01:47]} 12. Qb4 {[%emt 0:04:24]} Ned5 {[%emt 0:06:40]} 13. Qa5 {[%emt 0:07:00]} Nxc3 {[%emt 0:02:43]} 14. bxc3 {[%emt 0:02:42]} Be6 {[%emt 0:01:47]} 15. Rab1 {[%emt 0:02:37]} Qd7 {[%emt 0:01:41]} 16. Rfd1 {[%emt 0:04:32]} Rfd8 {[%emt 0:04:28]} 17. Be1 {[%emt 0:05:56]} Qf7 {[%emt 0:02:47]} 18. c4 {[%emt 0:15:13]} Re8 {[%emt 0:11:46]} 19. Nd2 {[%emt 0:04:06]} Nc8 {[%emt 0:03:43]} 20. Ne4 {[%emt 0:02:04]} Bf8 {[%emt 0:08:59]} 21. Bb4 {[%emt 0:01:44]} Bxb4 {[%emt 0:01:29]} 22. Qxb4 {[%emt 0:03:45]} Rb8 {[%emt 0:01:01]} 23. a4 {[%emt 0:00:27]} Kg7 {[%emt 0:05:42]} 24. a5 {[%emt 0:03:50]} b5 {[%emt 0:02:56]} 25. Qc5 {[%emt 0:03:21]} Qd7 {[%emt 0:00:58]} 26. d4 {[%emt 0:09:45]} exd4 {[%emt 0:01:47]} 27. Rxd4 {[%emt 0:00:16]} Qf7 {[%emt 0:00:50]} 28. cxb5 {[%emt 0:00:52]} Rxb5 {[%emt 0:01:08]} 29. Rxb5 {[%emt 0:00:05]} cxb5 {[%emt 0:00:04]} 30. Qxb5 {[%emt 0:00:39]} Bf5 {[%emt 0:01:25]} 31. Nc5 {[%emt 0:01:53]} Qa2 {[%emt 0:04:12]} 32. Qxe8 {[%emt 0:03:27]} Qa1+ {[%emt 0:00:02]} 33. Bf1 {[%emt 0:00:03]} Qxd4 {[%emt 0:00:48]} 34. Ne6+ {[%emt 0:00:46]} Bxe6 {[%emt 0:00:03]} 35. Qxe6 {[%emt 0:00:02]} Qd8 {[%emt 0:01:18]} 36. e4 {[%emt 0:00:28]} Nd6 {[%emt 0:00:39]} 37. Qd5 {[%emt 0:00:40]} (37. e5 $142 fxe5 38. Qxe5+ Kf7 39. Qd5+ Ke7 40. Bh3) 37... Qe7 $18 {[%emt 0:01:19]} 38. Bd3 {[%emt 0:00:13]} Nf7 {[%emt 0:01:59]} 39. a6 {[%emt 0:01:02]} Nd6 {[%emt 0:01:25]} (39... Qd8 $16 {might work better.}) 40. Kg2 {[%emt 0:01:39]} Nf7 {[%emt 0:01:31]} 41. Qb7 {[%emt 0:00:28]} Qc5 $2 {[%emt 0:00:04]} (41... Kf8 {was necessary.} 42. h4 Nd6 43. Qa8+ Kg7) 42. Bb5 {[%emt 0:00:24]} (42. Bb1 $142 {Black must now prevent Ba2.} Kf8 43. Ba2) 42... Kg8 {[%emt 0:00:37]} 43. Bc6 {[%emt 0:00:33]} Ne5 {[%emt 0:01:18]} 44. Bd5+ {[%emt 0:00:06]} Kh8 {[%emt 0:00:11]} 45. Qb8+ {[%emt 0:01:23]} Kg7 {[%emt 0:00:05]} 46. Qb7+ {[%emt 0:00:23]} Kh8 $1 {[%emt 0:00:17]} 47. Qb2 {[%emt 0:00:31]} Kg7 {[%emt 0:00:46]} 48. Qd2 {[%emt 0:00:49]} ({Better is} 48. Qb3 $16) 48... Qb6 {[%emt 0:03:09]} (48... g5 $14) 49. Bb7 {[%emt 0:00:09]} (49. f4 $16 Nc6 50. Qf2 Qxa6 51. Bxc6 Qxc6 52. Qxa7+ Kg8 53. Qb8+ Kg7 54. Qa7+ Kg8 55. Qa2+ Kg7 56. Kf3) 49... Qc7 {[%emt 0:00:02]} ({Black should play} 49... Qb3 $14) 50. Qd4 $16 {[%emt 0:00:33]} Nd7 {[%emt 0:00:10]} 51. h4 {[%emt 0:00:35]} h5 {[%emt 0:00:46]} (51... Nc5 $16 52. Kf3 Qe7 (52... Nxb7 $2 53. Qxa7 Qc1 54. Kg2 $18)) 52. Qe3 {[%emt 0:00:21]} (52. Qxa7 Nb6 $11) 52... Nc5 {[%emt 0:01:49]} 53. Qd4 {[%emt 0:00:24]} Nd7 $1 {[%emt 0:00:18]} (53... Nxb7 54. Qxa7 (54. axb7 Qxb7 55. Qe3 f5 $11) 54... Qe7 55. Qxb7 Kf8 56. Qxe7+ Kxe7 57. a7 Ke8 58. a8=Q+ (58. a8=B Kf8 $18) 58... Kd7 59. Qd5+ Kc7 60. Kf3 (60. Qf7+ Kd6 61. Qxf6+ Kc5 62. e5 Kc4 63. e6 g5 64. e7 gxh4)) 54. Qd5 {[%emt 0:00:52]} (54. Qxa7 Nb6 $11) 54... Nb6 $2 {[%emt 0:00:51]} (54... Nc5 55. Kg1 Qe7) 55. Qe6 $18 {[%emt 0:00:19]} Qd7 {[%emt 0:01:51]} (55... Qf7 $142 56. Qd6 Qd7) 56. Qxd7+ $18 {[%emt 0:00:26]} Nxd7 {[%emt 0:00:03]} 57. f4 {[%emt 0:00:09]} Kf8 {[%emt 0:02:09]} 58. Kf3 {[%emt 0:00:16]} Ke7 {[%emt 0:00:29]} 59. Ke3 {[%emt 0:00:28]} (59. Bd5 $142) 59... Nc5 {[%emt 0:02:00]} 60. Kd4 {[%emt 0:00:13]} Nb3+ {[%emt 0:00:54]} 61. Ke3 $2 {[%emt 0:01:29]} (61. Kd5 Nc1 62. Kc6) 61... Nc5 $1 $18 {[%emt 0:00:06]} 62. Kd4 $2 {[%emt 0:00:41]} (62. f5 gxf5 63. exf5) 62... Nb3+ $18 {[%emt 0:00:04]} 63. Kd5 {[%emt 0:00:26]} Nd2 {[%emt 0:01:22]} 64. e5 {[%emt 0:00:21]} Nf1 {[%emt 0:01:00]} 65. Bc8 {[%emt 0:00:29]} Nxg3 {[%emt 0:00:41]} 66. Kc6 {[%emt 0:00:35]} fxe5 {[%emt 0:04:42]} 67. fxe5 {[%emt 0:00:05]} Kd8 {[%emt 0:00:16]} 68. Kb7 {[%emt 0:01:00]} Ne4 {[%emt 0:00:31]} 69. Kb8 {[%emt 0:00:25]} Nc3 {[%emt 0:01:22]} 70. Be6 {[%emt 0:00:27]} Ne4 {[%emt 0:01:43]} 71. Bf7 {[%emt 0:00:50]} g5 {[%emt 0:00:05]} 72. hxg5 {[%emt 0:00:20]} (72. Bxh5 gxh4 73. Bg4 (73. Kxa7 Kc7 $11) 73... Nc3 $11) 72... Nxg5 {[%emt 0:00:01]} 73. Bxh5 $2 {[%emt 0:00:08]} (73. e6 $18 {has better winning chances.} h4 74. Kxa7) 73... Ne6 $16 {[%emt 0:01:02]} 74. Kxa7 $2 {[%emt 0:00:45]} (74. Bg4 $16 Nf4 75. Bf5 (75. Kxa7 Kc7 $11)) 74... Kc7 $11 {[%emt 0:00:02]} 75. Bg4 {[%emt 0:00:37]} Nf4 {[%emt 0:00:46]} 76. Bf3 {[%emt 0:00:30]} Ng6 {[%emt 0:00:04]} 77. e6 {[%emt 0:00:09]} Ne7 {[%emt 0:00:01]} 78. Be4 $2 {[%emt 0:00:37][%mdl 8192]} (78. Bd1 $11) 78... Nc8+ {[%emt 0:00:07]} 1/2-1/2

[Event "1000GM Summer-II Dual Schev-A 2024"]
[Site "San Jose"]
[Date "2024.07.03"]
[Round "2.5"]
[White "Sanchez, Sebastian Felipe"]
[Black "Garduno Huerta, Joshua Emiliano"]
[Result "1-0"]
[ECO "D02"]
[WhiteElo "2400"]
[BlackElo "1967"]
[Annotator "RC"]
[PlyCount "75"]
[EventDate "2024.06.29"]
[EventType "schev"]
[EventCountry "USA"]
[SourceTitle "playchess.com"]
[Source "ChessBase"]
[SourceQuality "1"]
[TimeControl "5400+30"]

1. d4 {[%emt 0:00:04]} d5 {[%emt 0:05:48]} 2. Nf3 {[%emt 0:00:31]} Nf6 {[%emt 0:00:07]} 3. Bf4 {[%emt 0:02:37]} e6 {[%emt 0:00:09]} 4. e3 {[%emt 0:00:07]} Bd6 {[%emt 0:00:05]} 5. Nbd2 {[%emt 0:00:07]} O-O {[%emt 0:00:18]} 6. Bg3 {[%emt 0:02:29]} c5 {[%emt 0:00:26]} 7. c3 {[%emt 0:00:06]} Qc7 {[%emt 0:00:14]} 8. Ne5 {[%emt 0:01:40]} Nbd7 {[%emt 0:00:06]} 9. f4 {[%emt 0:00:06]} b5 {[%emt 0:00:05]} 10. a3 {[%emt 0:04:56]} b4 {[%emt 0:10:46]} 11. axb4 {[%emt 0:01:32]} cxb4 {[%emt 0:00:26]} 12. c4 {[%emt 0:00:04]} dxc4 {[%emt 0:01:20]} 13. Bxc4 {[%emt 0:00:11]} Bb7 {[%emt 0:05:49]} 14. O-O {[%emt 0:00:24]} Bxe5 {[%emt 0:08:04]} 15. fxe5 {[%emt 0:00:15]} Ne4 {[%emt 0:00:08]} 16. Nxe4 {[%emt 0:06:27]} Bxe4 {[%emt 0:03:19]} 17. Ba6 {[%emt 0:00:05]} Rab8 {[%emt 0:07:48]} 18. Qg4 {[%emt 0:03:49]} Bg6 {[%emt 0:02:49]} 19. Rfc1 {[%emt 0:03:00]} Qb6 {[%emt 0:01:27]} 20. Qf3 {[%emt 0:00:17]} b3 {[%emt 0:01:34]} 21. Bh4 {[%emt 0:09:56]} Rfe8 {[%emt 0:17:55]} 22. Rc6 {[%emt 0:01:43]} Qb4 {[%emt 0:00:07]} 23. Rc7 {[%emt 0:00:07]} Nxe5 {[%emt 0:01:17]} 24. Qf4 {[%emt 0:06:12]} Qd2 {[%emt 0:05:44]} 25. Qxe5 {[%emt 0:00:58]} Qxb2 {[%emt 0:00:27]} 26. Rf1 {[%emt 0:00:09]} Qa3 {[%emt 0:08:47]} 27. Bd3 {[%emt 0:04:15]} Bxd3 {[%emt 0:01:57]} 28. Rcxf7 {[%emt 0:14:05]} Qf8 {[%emt 0:02:17]} 29. Rxf8+ {[%emt 0:00:05]} Rxf8 {[%emt 0:00:01]} 30. Rd1 {[%emt 0:06:11]} b2 {[%emt 0:00:29]} 31. h3 {[%emt 0:00:03]} Rb6 {[%emt 0:03:27]} 32. Kh2 {[%emt 0:06:52]} Rf1 {[%emt 0:08:11]} 33. Qc7 {[%emt 0:10:12]} h6 {[%emt 0:03:35]} 34. Bg3 {[%emt 0:05:14]} Rxd1 {[%emt 0:01:56]} 35. Be5 {[%emt 0:00:08]} Kf8 {[%emt 0:00:15]} 36. Bxg7+ {[%emt 0:00:39]} Kg8 {[%emt 0:00:32]} 37. Bf6 {[%emt 0:00:20]} Rh1+ {[%emt 0:00:43]} 38. Kg3 {[%emt 0:00:09]} 1-0

[Event "1000GM Summer-II Dual Schev-A 2024"]
[Site "San Jose"]
[Date "2024.07.03"]
[Round "3.1"]
[White "Jimenez Garcia, Emmanuel"]
[Black "Solis Castro, Angel Alejan"]
[Result "1-0"]
[ECO "A30"]
[WhiteElo "2370"]
[BlackElo "2003"]
[Annotator "TA"]
[PlyCount "61"]
[EventDate "2024.06.29"]
[EventType "schev"]
[EventCountry "USA"]
[SourceTitle "playchess.com"]
[Source "ChessBase"]
[SourceQuality "1"]
[TimeControl "5400+30"]

{[%evp 21,61,58,69,60,94,74,75,88,91,82,145,117,272,276,342,352,416,402,540,546,714,698,657,709,867,693,788,634,665,667,658,632,668,654,851,849,812,781,4894,1439,29984,29985]} 1. Nf3 {[%emt 0:00:21]} Nf6 {[%emt 0:01:43]} 2. g3 {[%emt 0:00:09]} b6 {[%emt 0:02:57]} 3. Bg2 {[%emt 0:00:07]} Bb7 {[%emt 0:00:05]} 4. O-O {[%emt 0:00:31]} c5 {[%emt 0:01:39]} 5. c4 {[%emt 0:00:51]} e6 {[%emt 0:02:23]} 6. Nc3 {[%emt 0:01:19]} Be7 {[%emt 0:02:45]} 7. d4 {[%emt 0:00:11]} cxd4 {[%emt 0:01:34]} 8. Qxd4 {[%emt 0:01:12]} O-O {[%emt 0:02:52]} 9. Rd1 {[%emt 0:00:06]} Nc6 {[%emt 0:04:06]} 10. Qf4 {[%emt 0:00:31]} a6 {[%emt 0:04:21]} 11. b3 {[%emt 0:00:50]} Rc8 {[%emt 0:05:56]} 12. e4 {[%emt 0:06:58][%cal Be2e4,Be4e5][%mdl 32]} b5 {[%emt 0:20:33]} 13. e5 {[%emt 0:02:06]} Ne8 {[%emt 0:01:09]} 14. cxb5 {[%emt 0:01:31][%cal Bc4b5,Bb5a6,Ba6b7][%mdl 32] White is much more active. The black rooks are passive. White is better.} Nb4 {[%emt 0:03:53]} 15. Bb2 {[%emt 0:05:50][%cal Ob5b6]} f6 {[%emt 0:03:55]} (15... axb5 $142 16. Nxb5 f6) 16. bxa6 {[%emt 0:06:34]} fxe5 $2 {[%emt 0:05:45]} (16... Bxa6 $16 17. Qd2 Nd3) 17. Qxf8+ $18 {[%emt 0:04:44]} Bxf8 {[%emt 0:04:32]} 18. axb7 {[%emt 0:00:07]} Rc7 {[%emt 0:00:52]} 19. Nxe5 {[%emt 0:01:00]} d5 {[%emt 0:17:16]} 20. Bh3 {[%emt 0:04:12]} Nd6 {[%emt 0:01:58]} 21. Bxe6+ {[%emt 0:00:51]} Kh8 {[%emt 0:00:10]} 22. Nxd5 {[%emt 0:03:58]} Nxd5 {[%emt 0:00:55]} 23. Rxd5 {[%emt 0:00:43]} Rxb7 {[%emt 0:06:40] [#]} 24. Nf7+ $1 {[%emt 0:01:52][%mdl 512]} Rxf7 {[%emt 0:01:35] Black is weak on the dark squares} (24... Nxf7 25. Rxd8) 25. Bxf7 {[%emt 0:00:03] A strong pair of Bishops.} Qc7 {[%emt 0:01:02]} 26. Bh5 {[%emt 0:56:53]} Qc2 {[%emt 0:00:28]} 27. Bd4 {[%emt 0:00:00]} Qe4 {[%emt 0:00:20] [#]} 28. Rd1 $1 {[%emt 0:00:00]} Kg8 {[%emt 0:01:05]} 29. Bc5 {[%emt 0:00:00]} Nb7 {[%emt 0:01:54]} 30. Bxf8 {[%emt 0:00:00][%cal Od5d7] White wants to mate with Rd7!} Kxf8 {[%emt 0:00:02] [#]} 31. Rd8+ $1 {[%emt 0:00:00] Black did not feel at home in the position after the opening.   Weighted Error Value: White=0.38/Black=0.82.  Mistake:       	---       	Black=2      Inaccurate:     	---       	Black=3      OK:         	White=4     	Black=1      Best:        	White=3     	Black=1} 1-0

[Event "1000GM Summer-II Dual Schev-A 2024"]
[Site "San Jose"]
[Date "2024.07.03"]
[Round "3.2"]
[White "Dominguez Aguilar, Guillermo"]
[Black "Ganesan, Vikrant"]
[Result "1-0"]
[ECO "E06"]
[WhiteElo "2281"]
[BlackElo "2038"]
[Annotator "TA"]
[PlyCount "59"]
[EventDate "2024.06.29"]
[EventType "schev"]
[EventCountry "USA"]
[SourceTitle "playchess.com"]
[Source "ChessBase"]
[SourceQuality "1"]
[TimeControl "5400+30"]

{[%evp 13,59,10,30,25,43,52,39,33,45,37,49,43,28,34,103,100,102,102,244,249,244,240,244,240,252,253,235,245,249,260,260,250,270,261,263,263,342,337,367,375,418,418,610,606,1528,1702,1618,1613]} 1. c4 {[%emt 0:00:15]} Nf6 {[%emt 0:02:47]} 2. g3 {[%emt 0:00:25]} e6 {[%emt 0:00:23]} 3. Bg2 {[%emt 0:00:25]} d5 {[%emt 0:00:17]} 4. Nf3 {[%emt 0:00:23]} c6 {[%emt 0:00:38]} 5. O-O {[%emt 0:00:11]} Be7 {[%emt 0:01:26]} 6. d4 {[%emt 0:00:17]} O-O {[%emt 0:00:05]} 7. Nc3 {[%emt 0:00:16][%cal Bb1c3,Bc3e4,Be4c5,Bc5e6][%mdl 32]} b6 {[%emt 0:00:38]} 8. Nd2 {[%emt 0:08:00]} Bb7 {[%emt 0:06:10]} 9. e4 {[%emt 0:00:44]} Nxe4 {[%emt 0:01:22]} 10. Ndxe4 {[%emt 0:00:46] White is slightly better.} dxe4 {[%emt 0:00:08]} 11. Nxe4 {[%emt 0:00:26]} Nd7 {[%emt 0:01:05]} 12. Qc2 {[%emt 0:00:34]} c5 {[%emt 0:18:04]} 13. dxc5 {[%emt 0:05:14][%cal Oe4g5]} Nxc5 {[%emt 0:04:33]} ({Black should play} 13... f5 $14 14. Nf6+ Bxf6 15. Bxb7 Rb8) 14. Nxc5 $16 {[%emt 0:02:07]} Bxg2 {[%emt 0:03:29]} 15. Nxe6 $40 {[%emt 0:00:29][%mdl 128] White goes for the king.} ({Don't play} 15. Kxg2 $6 Bxc5 16. b3 e5 $11) 15... Qc8 {[%emt 0:01:20] This costs Black the game.} (15... fxe6 $16 16. Kxg2 Bc5) 16. Nxf8 $18 {[%emt 0:02:52]} ({Less strong is} 16. Kxg2 Qxe6 17. Bd2 Qc6+ 18. Kg1 h5 $16) 16... Qh3 {[%emt 0:05:51][%cal Oe7f8] [#]} 17. Qxh7+ $1 {[%emt 0:00:25]} Qxh7 {[%emt 0:00:28]} 18. Nxh7 {[%emt 0:00:04]} Bxf1 {[%emt 0:00:07]} 19. Kxf1 {[%emt 0:00:46]} Kxh7 {[%emt 0:00:02][%mdl 4096] Endgame. KRB-KRB} 20. Be3 {[%emt 0:00:20]} Bf6 {[%emt 0:00:26]} 21. Rb1 {[%emt 0:00:02]} Kg6 {[%emt 0:00:32]} 22. b3 {[%emt 0:00:16]} Rd8 {[%emt 0:00:46]} 23. Ke2 {[%emt 0:00:09]} Kf5 {[%emt 0:00:25]} 24. h4 {[%emt 0:00:11]} Re8 {[%emt 0:00:28]} 25. Rd1 {[%emt 0:00:22]} Re7 {[%emt 0:00:04]} 26. Rd5+ {[%emt 0:00:41]} Kg4 {[%emt 0:00:28]} 27. a4 {[%emt 0:00:37]} Kh3 {[%emt 0:00:31]} (27... Rb7 $142 28. b4 Be7) 28. Kf3 {[%emt 0:00:22] [#] Black must now prevent Rd1. White is clearly winning.} g6 {[%emt 0:03:29]} 29. Rd1 {[%emt 0:00:54]} Kh2 {[%emt 0:00:11] Dodges Rh1+} 30. Bf4 {[%emt 0:00:22] Weighted Error Value: White=0.01 (flawless) /Black=0.47.  Mistake:       	---       	Black=3      Inaccurate:     	---       	Black=2      OK:         	White=10    	Black=9      Best:        	White=2     	---        Brilliant:      	White=1     	---} 1-0

[Event "1000GM Summer-II Dual Schev-A 2024"]
[Site "San Jose"]
[Date "2024.07.03"]
[Round "3.3"]
[White "Rajaram, Rohan"]
[Black "Figueredo Losada, Leonel"]
[Result "1/2-1/2"]
[ECO "A40"]
[WhiteElo "2062"]
[BlackElo "2314"]
[Annotator "RC"]
[PlyCount "56"]
[EventDate "2024.06.29"]
[EventType "schev"]
[EventCountry "USA"]
[SourceTitle "playchess.com"]
[Source "ChessBase"]
[SourceQuality "1"]
[TimeControl "5400+30"]

1. d4 {[%emt 0:02:37]} e6 {[%emt 0:01:12]} 2. c4 {[%emt 0:00:17]} Bb4+ {[%emt 0:02:08]} 3. Bd2 {[%emt 0:02:03]} Qe7 {[%emt 0:00:05]} 4. a3 {[%emt 0:01:26]} Bxd2+ {[%emt 0:00:05]} 5. Qxd2 {[%emt 0:00:29]} d6 {[%emt 0:01:39]} 6. Nc3 {[%emt 0:01:28]} Nf6 {[%emt 0:00:06]} 7. e3 {[%emt 0:01:19]} O-O {[%emt 0:00:23]} 8. Bd3 {[%emt 0:00:45]} e5 {[%emt 0:01:11]} 9. Nge2 {[%emt 0:00:34]} Re8 {[%emt 0:18:36]} 10. O-O {[%emt 0:02:41]} c5 {[%emt 0:09:22]} 11. Rae1 {[%emt 0:07:08]} Qd8 {[%emt 0:06:54]} 12. Rd1 {[%emt 0:11:06]} Qe7 {[%emt 0:08:27]} 13. Rfe1 {[%emt 0:01:39]} e4 {[%emt 0:00:48]} 14. Bc2 {[%emt 0:01:25]} Bg4 {[%emt 0:00:14]} 15. h3 {[%emt 0:02:48]} Bxe2 {[%emt 0:00:34]} 16. Nxe2 {[%emt 0:06:48]} Nbd7 {[%emt 0:02:49]} 17. Ng3 {[%emt 0:01:07]} Nb6 {[%emt 0:00:53]} 18. Qe2 {[%emt 0:02:05]} Qe6 {[%emt 0:06:37]} 19. b3 {[%emt 0:01:18]} a5 {[%emt 0:00:24]} 20. a4 {[%emt 0:00:43]} Nbd7 {[%emt 0:02:31]} 21. Qd2 {[%emt 0:08:08]} Nf8 {[%emt 0:04:53]} 22. Qe2 {[%emt 0:04:26]} Ng6 {[%emt 0:03:50]} 23. f3 {[%emt 0:02:17]} exf3 {[%emt 0:03:07]} 24. Qxf3 {[%emt 0:00:08]} b6 {[%emt 0:00:24]} 25. Re2 {[%emt 0:02:56]} Rad8 {[%emt 0:01:14]} 26. Bf5 {[%emt 0:07:46]} Qe7 {[%emt 0:00:04]} 27. Bd3 {[%emt 0:00:20]} Qe6 {[%emt 0:04:09]} 28. Bf5 {[%emt 0:00:12]} Qe7 {[%emt 0:21:51]} 1/2-1/2

[Event "1000GM Summer-II Dual Schev-A 2024"]
[Site "San Jose"]
[Date "2024.07.03"]
[Round "3.4"]
[White "Garduno Huerta, Joshua Emiliano"]
[Black "Fierro Baquero, Martha L."]
[Result "1-0"]
[ECO "A42"]
[WhiteElo "1967"]
[BlackElo "2273"]
[Annotator "TA"]
[PlyCount "73"]
[EventDate "2024.06.29"]
[EventType "schev"]
[EventCountry "USA"]
[SourceTitle "playchess.com"]
[Source "ChessBase"]
[SourceQuality "1"]
[TimeControl "5400+30"]

{[%evp 11,73,38,47,0,36,14,40,43,35,31,62,56,76,45,70,33,32,31,55,46,78,67,59,63,87,84,81,84,94,93,104,97,98,94,113,89,92,63,182,180,293,282,381,101,92,87,134,137,181,121,245,220,241,227,202,159,29988,29989,29989,29990,29990,29991,29991,29992]} 1. d4 {[%emt 0:01:20]} g6 {[%emt 0:02:55]} 2. c4 {[%emt 0:00:08]} Bg7 {[%emt 0:00:06]} 3. Nc3 {[%emt 0:00:13]} d6 {[%emt 0:01:27]} 4. e4 {[%emt 0:02:49]} Nc6 {[%emt 0:00:37]} 5. Be3 {[%emt 0:02:57]} e5 {[%emt 0:00:04]} 6. Nge2 {[%emt 0:07:47]} f5 {[%emt 0:07:47]} 7. f3 {[%emt 0:04:14]} (7. exf5 $14 {might be stronger.} Bxf5 8. d5) 7... Nf6 {[%emt 0:02:27]} 8. exf5 {[%emt 0:06:15]} gxf5 {[%emt 0:13:02]} 9. dxe5 {[%emt 0:02:25] White is slightly better.} Nxe5 {[%emt 0:00:03][%cal Od8e7]} 10. Nf4 {[%emt 0:03:14]} O-O {[%emt 0:01:09]} 11. Qd2 {[%emt 0:04:44]} Qe8 {[%emt 0:11:48]} 12. Be2 {[%emt 0:16:40]} Be6 {[%emt 0:05:20]} 13. Nxe6 {[%emt 0:00:44]} Qxe6 {[%emt 0:00:04]} 14. Nd5 {[%emt 0:02:09]} Nxd5 {[%emt 0:07:05]} 15. cxd5 {[%emt 0:00:54]} Qf6 {[%emt 0:06:31]} 16. O-O {[%emt 0:03:28]} Rae8 {[%emt 0:01:51]} 17. Rfe1 {[%emt 0:07:57]} f4 {[%emt 0:01:15]} 18. Bf2 {[%emt 0:02:19]} Re7 {[%emt 0:01:52]} 19. Bf1 {[%emt 0:07:08]} Qg6 {[%emt 0:04:46]} 20. Kh1 {[%emt 0:01:35]} Kh8 {[%emt 0:01:58]} 21. Re4 {[%emt 0:05:09]} (21. Bxa7 b6 22. Qe2 Bf6 $17) 21... Ref7 {[%emt 0:02:47]} 22. Rae1 {[%emt 0:01:20]} (22. Bxa7 b6 $11) 22... Rg8 {[%emt 0:05:54]} 23. Bd4 {[%emt 0:01:35]} (23. Rxf4 $2 Bh6 24. Ree4 Rxf4 (24... Bxf4 25. Rxf4 Qb1 26. Kg1 $11) 25. Rxf4 Qb1 $19 (25... Bxf4 26. Qxf4 Re8 27. Qa4 $11)) (23. Bxa7 $6 b6 24. Bb5 (24. Rxf4 $2 Bh6 $19) 24... c6 25. dxc6 Rxa7 $11) 23... Qh5 {[%emt 0:13:25]} 24. Qc3 {[%emt 0:08:11]} (24. Rxf4 $6 Bh6 25. Ree4 (25. Bxe5+ $2 dxe5 $19) 25... Bxf4 26. Rxf4 Qg5 $11) (24. Bxa7 $6 b6 $11) 24... Rf5 {[%emt 0:03:14]} ({Better is} 24... Qh6 $14) 25. Qxc7 $18 {[%emt 0:04:37]} (25. Bxa7 b6 26. Rc1 (26. Qxc7 $2 Nxf3 27. h3 Bd4 $19) 26... Qg6 $19) 25... Rg5 {[%emt 0:02:11]} (25... Rf7 {keeps fighting.} 26. Qc3 (26. Qxd6 $2 Nxf3 27. Bxg7+ Rfxg7 $19) 26... Qh6) 26. Rxf4 {[%emt 0:02:54]} (26. Qxb7 Nxf3 27. Bg1 Nxe1 28. Qxa7 Nxg2 $19) 26... Nxf3 {[%emt 0:01:18] Black is weak on the light squares} 27. Rxf3 $2 {[%emt 0:00:40]} (27. Qxg7+ $1 $18 {and the rest is easy.} R5xg7 28. gxf3) 27... Bxd4 $16 {[%emt 0:00:16] [#]} 28. Re7 $1 {[%emt 0:00:32]} (28. Qxd6 Qxf3 (28... Bxb2 29. Qc5 $16) (28... Be5 $2 29. Qxe5+ Rxe5 30. Rc1 $19) 29. Qe7 Rxg2 (29... Qxd5 $2 30. Qe4 $19) (29... Qxd5 $2 30. Qe4 $19)) 28... Be5 {[%emt 0:00:57] [#]} (28... Bxb2 $142 29. Qxb7 (29. Qxd6 Qxf3) 29... Be5) 29. h3 $1 {[%emt 0:00:29] Active counter play!} (29. Qxb7 $2 Qxh2#) 29... Qh4 {[%emt 0:01:37]} 30. Bd3 {[%emt 0:00:31]} ({White should try} 30. b4 $18) 30... Rh5 {[%emt 0:00:53]} (30... R5g7 $16 31. Rxg7 Bxg7 32. Qxd6 Qg5) 31. Qd7 {[%emt 0:00:24]} Qe1+ {[%emt 0:00:49]} 32. Rf1 {[%emt 0:00:32]} Qh4 {[%emt 0:00:22]} 33. Rff7 $40 {[%emt 0:00:34][%cal Rf7h7][%mdl 128] White has strong attack.} (33. Qxb7 $2 {gets mated.} Qxh3+ 34. gxh3 Rxh3#) 33... Bg7 $2 {[%emt 0:00:38] This costs Black the game.} (33... Qe1+ $16 34. Rf1 Qh4) 34. Rxg7 {[%emt 0:00:26] White mates.} Rxg7 {[%emt 0:00:20]} 35. Rxg7 {[%emt 0:00:16]} Qe1+ {[%emt 0:00:37]} 36. Kh2 {[%emt 0:00:01]} Qe5+ {[%emt 0:00:06]} 37. Rg3 {[%emt 0:00:05] Weighted Error Value: White=0.21 (precise) /Black=0.52.  Loses game:     	---       	Black=1      Missed win:     	White=1     	---        Mistake:       	White=1     	Black=4      Inaccurate:     	White=3     	Black=6      OK:         	White=9     	Black=2      Best:        	White=3     	Black=2      Strong:       	White=2     	---} 1-0